[Event "*** Titled Tuesday Blitz"]
[Site "Chess.com"]
[Date "2021.03.30"]
[Round "10"]
[White "TorFredrikKaasen"]
[Black "BogdanDeac"]
[Result "0-1"]
[WhiteElo "2743"]
[BlackElo "3008"]
[TimeControl "180+1"]
[EndTime "11:55:03 PDT"]
[Termination "BogdanDeac won by resignation"]

1. Nf3 {[%clk 0:03:00.9]} 1... d5 {[%clk 0:02:58.9]} 2. g3 {[%clk 0:03:00.9]}
2... Nf6 {[%clk 0:02:57.9]} 3. Bg2 {[%clk 0:03:01.2]} 3... e6 {[%clk 0:02:58.1]}
4. O-O {[%clk 0:03:01.5]} 4... Be7 {[%clk 0:02:58.4]} 5. d3 {[%clk 0:03:01.6]}
5... O-O {[%clk 0:02:58.2]} 6. Nbd2 {[%clk 0:03:02.3]} 6... a5 {[%clk
0:02:58.6]} 7. e4 {[%clk 0:03:02.6]} 7... a4 {[%clk 0:02:58.8]} 8. Re1 {[%clk
0:02:51.4]} 8... c5 {[%clk 0:02:56.6]} 9. e5 {[%clk 0:02:46.5]} 9... Nfd7 {[%clk
0:02:56.1]} 10. h4 {[%clk 0:02:45.1]} 10... Nc6 {[%clk 0:02:51.2]} 11. Nf1
{[%clk 0:02:36.6]} 11... f6 {[%clk 0:02:49]} 12. exf6 {[%clk 0:02:34.8]} 12...
Nxf6 {[%clk 0:02:49.4]} 13. Bf4 {[%clk 0:02:24.1]} 13... Ng4 {[%clk 0:02:29.7]}
14. Bh3 {[%clk 0:02:04.6]} 14... e5 {[%clk 0:02:20.9]} 15. Bg5 {[%clk
0:01:39.6]} 15... Nxf2 {[%clk 0:02:18.6]} 16. Kxf2 {[%clk 0:01:32.3]} 16... Bxh3
{[%clk 0:02:17.3]} 17. Kg1 {[%clk 0:01:22.8]} 17... Bg4 {[%clk 0:02:04]} 18.
N1h2 {[%clk 0:01:22.7]} 18... Rxf3 {[%clk 0:01:54.8]} 19. Nxf3 {[%clk
0:01:23.6]} 19... Bxg5 {[%clk 0:01:52.8]} 20. hxg5 {[%clk 0:01:22.2]} 20... Nd4
{[%clk 0:01:47.9]} 21. Re3 {[%clk 0:01:16]} 21... e4 {[%clk 0:01:47.2]} 22. dxe4
{[%clk 0:01:10]} 22... dxe4 {[%clk 0:01:46.1]} 23. Rxe4 {[%clk 0:01:00.2]} 23...
Bxf3 {[%clk 0:01:36.6]} 0-1

[Event "*** Titled Tuesday Blitz"]
[Site "Chess.com"]
[Date "2021.03.30"]
[Round "10"]
[White "Arvids_Andrejevs"]
[Black "Kostukov_Alex"]
[Result "1-0"]
[WhiteElo "2447"]
[BlackElo "2312"]
[TimeControl "180+1"]
[EndTime "11:55:21 PDT"]
[Termination "Arvids_Andrejevs won by resignation"]

1. e4 {[%clk 0:02:56.9]} 1... c5 {[%clk 0:02:58.7]} 2. c3 {[%clk 0:02:56.8]}
2... g6 {[%clk 0:02:58.8]} 3. d4 {[%clk 0:02:56.9]} 3... cxd4 {[%clk 0:02:59.7]}
4. cxd4 {[%clk 0:02:57.5]} 4... d5 {[%clk 0:02:59.6]} 5. exd5 {[%clk 0:02:52.8]}
5... Nf6 {[%clk 0:02:59.5]} 6. Nf3 {[%clk 0:02:53.1]} 6... Nxd5 {[%clk
0:02:58.9]} 7. Nc3 {[%clk 0:02:53.7]} 7... Bg7 {[%clk 0:02:57.3]} 8. Bc4 {[%clk
0:02:53.4]} 8... Nb6 {[%clk 0:02:27.3]} 9. Bb3 {[%clk 0:02:53]} 9... O-O {[%clk
0:02:27.5]} 10. h3 {[%clk 0:02:52.5]} 10... Nc6 {[%clk 0:02:27.9]} 11. Be3
{[%clk 0:02:52]} 11... Na5 {[%clk 0:02:28.2]} 12. O-O {[%clk 0:02:50.9]} 12...
Nbc4 {[%clk 0:02:28]} 13. Bc1 {[%clk 0:02:45.7]} 13... Be6 {[%clk 0:02:06]} 14.
Re1 {[%clk 0:02:45]} 14... Nxb3 {[%clk 0:01:54.6]} 15. axb3 {[%clk 0:02:44.1]}
15... Na5 {[%clk 0:01:48.8]} 16. d5 {[%clk 0:02:35.3]} 16... Bf5 {[%clk
0:01:36.6]} 17. Bg5 {[%clk 0:02:26.9]} 17... Bf6 {[%clk 0:01:30.9]} 18. d6
{[%clk 0:02:17.6]} 18... Bxg5 {[%clk 0:01:19.9]} 19. Nxg5 {[%clk 0:02:18.5]}
19... exd6 {[%clk 0:01:16.4]} 20. Nge4 {[%clk 0:02:13.7]} 20... Nc6 {[%clk
0:00:29.9]} 21. Nxd6 {[%clk 0:02:06.5]} 21... Qb6 {[%clk 0:00:25.6]} 22. Nd5
{[%clk 0:01:56.5]} 22... Be6 {[%clk 0:00:21.2]} 23. Nxb6 {[%clk 0:01:56]} 1-0

[Event "*** Titled Tuesday Blitz"]
[Site "Chess.com"]
[Date "2021.03.30"]
[Round "10"]
[White "Borsuk_Konstantin"]
[Black "Nozdrachev_Leonid"]
[Result "1-0"]
[WhiteElo "2667"]
[BlackElo "2538"]
[TimeControl "180+1"]
[EndTime "11:55:25 PDT"]
[Termination "Borsuk_Konstantin won by resignation"]

1. d4 {[%clk 0:03:00.9]} 1... d6 {[%clk 0:02:58.6]} 2. c4 {[%clk 0:03:01.2]}
2... e5 {[%clk 0:02:57.9]} 3. Nf3 {[%clk 0:02:59.9]} 3... e4 {[%clk 0:02:54.5]}
4. Ng5 {[%clk 0:02:59.7]} 4... f5 {[%clk 0:02:54.3]} 5. g3 {[%clk 0:02:59.3]}
5... Nf6 {[%clk 0:02:53.9]} 6. Nc3 {[%clk 0:02:58.6]} 6... c6 {[%clk 0:02:54]}
7. d5 {[%clk 0:02:56.6]} 7... Be7 {[%clk 0:02:52.7]} 8. h4 {[%clk 0:02:52.8]}
8... Na6 {[%clk 0:02:52.5]} 9. Be3 {[%clk 0:02:49.5]} 9... O-O {[%clk
0:02:50.1]} 10. Bh3 {[%clk 0:02:47.5]} 10... cxd5 {[%clk 0:02:45.2]} 11. cxd5
{[%clk 0:02:43.6]} 11... Nc5 {[%clk 0:02:39.1]} 12. b4 {[%clk 0:02:38.1]} 12...
Na6 {[%clk 0:02:33.7]} 13. Qb3 {[%clk 0:02:34.4]} 13... h6 {[%clk 0:02:19.8]}
14. Ne6 {[%clk 0:02:30.3]} 14... Bxe6 {[%clk 0:02:19.7]} 15. dxe6 {[%clk
0:02:31.2]} 15... Rc8 {[%clk 0:02:02.4]} 16. Rd1 {[%clk 0:02:06.8]} 16... d5
{[%clk 0:01:50.9]} 17. Nxd5 {[%clk 0:02:03.6]} 17... Nxd5 {[%clk 0:01:49.5]} 18.
Rxd5 {[%clk 0:02:02.9]} 18... Bxb4+ {[%clk 0:01:49]} 19. Kf1 {[%clk 0:01:59.4]}
19... Qe7 {[%clk 0:01:43.3]} 20. Rd7 {[%clk 0:01:50.9]} 20... Qe8 {[%clk
0:01:37.8]} 21. e7+ {[%clk 0:01:36.3]} 21... Rf7 {[%clk 0:01:36.2]} 22. Bxf5
{[%clk 0:01:35.6]} 22... Bxe7 {[%clk 0:01:28.8]} 23. Rxe7 {[%clk 0:01:25.4]}
23... Qxe7 {[%clk 0:01:26.1]} 24. Bxc8 {[%clk 0:01:24.8]} 24... Nc5 {[%clk
0:01:14.1]} 25. Qd5 {[%clk 0:01:18.8]} 1-0

[Event "*** Titled Tuesday Blitz"]
[Site "Chess.com"]
[Date "2021.03.30"]
[Round "10"]
[White "KubaGepard"]
[Black "sganerdene"]
[Result "0-1"]
[WhiteElo "2436"]
[BlackElo "2634"]
[TimeControl "180+1"]
[EndTime "11:55:25 PDT"]
[Termination "sganerdene won by resignation"]

1. d4 {[%clk 0:03:00.9]} 1... Nf6 {[%clk 0:02:59.5]} 2. Nf3 {[%clk 0:03:01.1]}
2... g6 {[%clk 0:02:59.7]} 3. g3 {[%clk 0:03:01.1]} 3... Bg7 {[%clk 0:03:00.2]}
4. Bg2 {[%clk 0:03:01.8]} 4... O-O {[%clk 0:03:00.7]} 5. O-O {[%clk 0:03:02.4]}
5... d6 {[%clk 0:03:01.3]} 6. b3 {[%clk 0:03:02.5]} 6... a5 {[%clk 0:03:00.1]}
7. c4 {[%clk 0:03:01.8]} 7... a4 {[%clk 0:03:00]} 8. Bb2 {[%clk 0:03:02.3]} 8...
c5 {[%clk 0:02:59.7]} 9. dxc5 {[%clk 0:02:43.7]} 9... dxc5 {[%clk 0:02:58.6]}
10. Na3 {[%clk 0:02:41.2]} 10... Qb6 {[%clk 0:02:56.9]} 11. Qc1 {[%clk
0:02:26.5]} 11... axb3 {[%clk 0:02:47]} 12. axb3 {[%clk 0:02:26.1]} 12... Qxb3
{[%clk 0:02:45.5]} 13. Rd1 {[%clk 0:02:11.4]} 13... Nc6 {[%clk 0:02:40.2]} 14.
Nb5 {[%clk 0:02:07]} 14... Rxa1 {[%clk 0:02:37.8]} 15. Bxa1 {[%clk 0:02:07.5]}
15... Bf5 {[%clk 0:02:34.2]} 16. Nd2 {[%clk 0:02:04.1]} 16... Qa4 {[%clk
0:02:28.6]} 17. e4 {[%clk 0:01:57.7]} 17... Bg4 {[%clk 0:02:27.2]} 18. Re1
{[%clk 0:01:53.1]} 18... Nb4 {[%clk 0:02:23.1]} 19. Bf1 {[%clk 0:01:40.2]} 19...
Nc2 {[%clk 0:02:02.1]} 20. Bxf6 {[%clk 0:01:38.8]} 20... Bxf6 {[%clk 0:01:56.6]}
21. e5 {[%clk 0:01:31.8]} 21... Nxe1 {[%clk 0:01:42.9]} 22. exf6 {[%clk
0:01:31]} 22... Qd1 {[%clk 0:01:42.6]} 23. Qb2 {[%clk 0:01:09.9]} 23... Qxd2
{[%clk 0:01:31.6]} 0-1

[Event "*** Titled Tuesday Blitz"]
[Site "Chess.com"]
[Date "2021.03.30"]
[Round "10"]
[White "IljaJoke"]
[Black "JoliyRoger"]
[Result "0-1"]
[WhiteElo "2490"]
[BlackElo "2403"]
[TimeControl "180+1"]
[EndTime "11:55:35 PDT"]
[Termination "JoliyRoger won by resignation"]

1. e4 {[%clk 0:03:00.9]} 1... c6 {[%clk 0:02:59.5]} 2. d4 {[%clk 0:03:00.3]}
2... d5 {[%clk 0:03:00.4]} 3. exd5 {[%clk 0:03:00.9]} 3... cxd5 {[%clk
0:03:00.5]} 4. c4 {[%clk 0:03:01.8]} 4... Nf6 {[%clk 0:03:00.2]} 5. Nc3 {[%clk
0:03:01.8]} 5... e6 {[%clk 0:03:00.7]} 6. Nf3 {[%clk 0:03:01.8]} 6... Bb4 {[%clk
0:03:01.4]} 7. cxd5 {[%clk 0:03:00.6]} 7... Nxd5 {[%clk 0:03:02]} 8. Qc2 {[%clk
0:02:57.6]} 8... Nc6 {[%clk 0:03:02.2]} 9. Bc4 {[%clk 0:02:45.3]} 9... O-O
{[%clk 0:02:59.6]} 10. O-O {[%clk 0:02:39.2]} 10... Nf6 {[%clk 0:02:50.9]} 11.
Rd1 {[%clk 0:02:37.1]} 11... Bxc3 {[%clk 0:02:37.2]} 12. bxc3 {[%clk 0:02:35.5]}
12... Ne7 {[%clk 0:02:37.8]} 13. Bg5 {[%clk 0:02:30.8]} 13... Qd6 {[%clk
0:02:38.2]} 14. Bd3 {[%clk 0:02:10.7]} 14... Ng6 {[%clk 0:02:31.3]} 15. c4
{[%clk 0:02:01.8]} 15... Bd7 {[%clk 0:02:27.7]} 16. c5 {[%clk 0:02:00.8]} 16...
Qc7 {[%clk 0:02:15]} 17. Bxf6 {[%clk 0:01:48.7]} 17... gxf6 {[%clk 0:02:13.2]}
18. d5 {[%clk 0:01:19.9]} 18... exd5 {[%clk 0:02:09.5]} 19. Bxg6 {[%clk
0:01:19.7]} 19... hxg6 {[%clk 0:02:07.4]} 20. Rxd5 {[%clk 0:01:19.9]} 20... Bc6
{[%clk 0:02:07.9]} 21. Rd6 {[%clk 0:01:09.4]} 21... Bxf3 {[%clk 0:01:42.3]} 22.
gxf3 {[%clk 0:01:10.3]} 22... Rac8 {[%clk 0:01:24.8]} 23. Rxf6 {[%clk
0:01:06.5]} 23... Qe5 {[%clk 0:01:16]} 0-1

[Event "*** Titled Tuesday Blitz"]
[Site "Chess.com"]
[Date "2021.03.30"]
[Round "10"]
[White "xberli"]
[Black "petincash"]
[Result "1-0"]
[WhiteElo "2487"]
[BlackElo "2281"]
[TimeControl "180+1"]
[EndTime "11:55:44 PDT"]
[Termination "xberli won by resignation"]

1. d4 {[%clk 0:03:00.9]} 1... Nf6 {[%clk 0:02:59.6]} 2. c4 {[%clk 0:02:59]} 2...
g6 {[%clk 0:03:00.1]} 3. Nc3 {[%clk 0:02:54]} 3... Bg7 {[%clk 0:03:00.6]} 4. e4
{[%clk 0:02:54]} 4... O-O {[%clk 0:03:01.1]} 5. Nge2 {[%clk 0:02:53.9]} 5... d6
{[%clk 0:02:59.3]} 6. Ng3 {[%clk 0:02:54.1]} 6... h5 {[%clk 0:02:56.7]} 7. Bg5
{[%clk 0:02:51.8]} 7... c5 {[%clk 0:02:54.8]} 8. d5 {[%clk 0:02:51.6]} 8... Qb6
{[%clk 0:02:52.6]} 9. Qd2 {[%clk 0:02:51.2]} 9... e6 {[%clk 0:02:42.6]} 10. Be2
{[%clk 0:02:50.4]} 10... exd5 {[%clk 0:02:42.7]} 11. exd5 {[%clk 0:02:51.3]}
11... Nbd7 {[%clk 0:02:37.4]} 12. O-O {[%clk 0:02:47.6]} 12... Ne5 {[%clk
0:02:35.4]} 13. f4 {[%clk 0:02:44.9]} 13... Neg4 {[%clk 0:02:20]} 14. h3 {[%clk
0:02:34.4]} 14... Nh6 {[%clk 0:02:19.5]} 15. Bd3 {[%clk 0:02:28.2]} 15... Nh7
{[%clk 0:01:59.9]} 16. f5 {[%clk 0:02:16.1]} 16... Nxg5 {[%clk 0:01:58.9]} 17.
Qxg5 {[%clk 0:02:17]} 17... Qxb2 {[%clk 0:01:44]} 18. fxg6 {[%clk 0:01:59.7]}
18... Qxc3 {[%clk 0:01:32.4]} 19. gxf7+ {[%clk 0:01:57.5]} 19... Rxf7 {[%clk
0:01:23.9]} 20. Qg6 {[%clk 0:01:43.7]} 20... Kf8 {[%clk 0:00:44.7]} 21. Rxf7+
{[%clk 0:01:30.8]} 21... Nxf7 {[%clk 0:00:44.1]} 22. Rf1 {[%clk 0:01:30.8]} 1-0

[Event "*** Titled Tuesday Blitz"]
[Site "Chess.com"]
[Date "2021.03.30"]
[Round "10"]
[White "ChristopherYoo"]
[Black "nikitakhoroshev"]
[Result "1-0"]
[WhiteElo "2913"]
[BlackElo "2676"]
[TimeControl "180+1"]
[EndTime "11:55:45 PDT"]
[Termination "ChristopherYoo won by resignation"]

1. e4 {[%clk 0:03:00.9]} 1... e5 {[%clk 0:02:59.6]} 2. Nf3 {[%clk 0:03:00.3]}
2... Nc6 {[%clk 0:02:59.8]} 3. Bb5 {[%clk 0:03:00.4]} 3... a6 {[%clk 0:03:00]}
4. Ba4 {[%clk 0:02:59.8]} 4... Nf6 {[%clk 0:02:59.7]} 5. d4 {[%clk 0:03:00]}
5... b5 {[%clk 0:02:54.1]} 6. Bb3 {[%clk 0:02:58.2]} 6... exd4 {[%clk
0:02:52.2]} 7. e5 {[%clk 0:02:57.7]} 7... Ne4 {[%clk 0:02:51.3]} 8. Bd5 {[%clk
0:02:56.6]} 8... Nc5 {[%clk 0:02:49.2]} 9. Nxd4 {[%clk 0:02:56.4]} 9... Bb7
{[%clk 0:02:32.9]} 10. O-O {[%clk 0:02:47.2]} 10... Nxd4 {[%clk 0:02:15.8]} 11.
Bxb7 {[%clk 0:02:45.5]} 11... Nxb7 {[%clk 0:02:14.7]} 12. Qxd4 {[%clk
0:02:44.9]} 12... Bc5 {[%clk 0:02:12]} 13. Qg4 {[%clk 0:02:41.8]} 13... Qe7
{[%clk 0:02:08.5]} 14. Qxg7 {[%clk 0:02:17]} 14... O-O-O {[%clk 0:02:06.8]} 15.
Bg5 {[%clk 0:02:16.4]} 15... Rdg8 {[%clk 0:01:57.6]} 16. Qxg8+ {[%clk 0:02:12]}
16... Rxg8 {[%clk 0:01:58.5]} 17. Bxe7 {[%clk 0:02:11.7]} 17... Bxe7 {[%clk
0:01:59.4]} 18. Nc3 {[%clk 0:02:12]} 18... Nc5 {[%clk 0:01:58.5]} 19. Rad1
{[%clk 0:02:11.2]} 19... h5 {[%clk 0:01:57.7]} 20. Rfe1 {[%clk 0:02:10.7]} 20...
h4 {[%clk 0:01:57.6]} 21. Nd5 {[%clk 0:02:10]} 21... Bd8 {[%clk 0:01:57.1]} 22.
g3 {[%clk 0:02:01.3]} 22... Rg6 {[%clk 0:01:52.3]} 23. Kg2 {[%clk 0:02:00.8]}
23... Ne6 {[%clk 0:01:51.7]} 24. Re4 {[%clk 0:01:43.7]} 24... h3+ {[%clk
0:01:42.8]} 25. Kf1 {[%clk 0:01:43.3]} 25... Ng5 {[%clk 0:01:41.6]} 26. Rf4
{[%clk 0:01:38.8]} 26... Re6 {[%clk 0:01:36.1]} 27. Rf5 {[%clk 0:01:38.6]} 27...
Ne4 {[%clk 0:01:31.9]} 28. Rd4 {[%clk 0:01:35.7]} 28... Nc5 {[%clk 0:01:25.3]}
29. Nf4 {[%clk 0:01:31.5]} 29... Rc6 {[%clk 0:01:25.2]} 30. Nxh3 {[%clk
0:01:31.1]} 30... Ne6 {[%clk 0:01:22.2]} 31. Rd2 {[%clk 0:01:30.6]} 31... Rc5
{[%clk 0:01:17.8]} 32. Nf4 {[%clk 0:01:25.2]} 32... Ng5 {[%clk 0:01:17.8]} 33.
Nd3 {[%clk 0:01:18.8]} 33... Rd5 {[%clk 0:01:17.7]} 34. h4 {[%clk 0:01:18.1]}
34... Ne4 {[%clk 0:01:17.2]} 35. Re2 {[%clk 0:01:18]} 35... Nd6 {[%clk
0:01:15.9]} 36. Rf3 {[%clk 0:01:17.6]} 36... Nc4 {[%clk 0:01:14.4]} 37. Rxf7
{[%clk 0:01:17.6]} 37... c6 {[%clk 0:01:14.5]} 38. h5 {[%clk 0:01:17.2]} 38...
Bg5 {[%clk 0:01:13.9]} 39. f4 {[%clk 0:01:16.2]} 39... Bd8 {[%clk 0:01:13.1]}
40. h6 {[%clk 0:01:16.3]} 1-0

[Event "*** Titled Tuesday Blitz"]
[Site "Chess.com"]
[Date "2021.03.30"]
[Round "10"]
[White "AniJak"]
[Black "zurzan"]
[Result "0-1"]
[WhiteElo "2295"]
[BlackElo "2007"]
[TimeControl "180+1"]
[EndTime "11:56:17 PDT"]
[Termination "zurzan won by resignation"]

1. e4 {[%clk 0:03:00.9]} 1... Nf6 {[%clk 0:02:56.4]} 2. e5 {[%clk 0:03:00.7]}
2... Nd5 {[%clk 0:02:56.7]} 3. d4 {[%clk 0:03:01.6]} 3... d6 {[%clk 0:02:56.5]}
4. c4 {[%clk 0:03:02.3]} 4... Nb6 {[%clk 0:02:56.2]} 5. exd6 {[%clk 0:03:02.5]}
5... cxd6 {[%clk 0:02:57.1]} 6. Be3 {[%clk 0:03:02.6]} 6... g6 {[%clk
0:02:56.9]} 7. Nc3 {[%clk 0:03:03]} 7... Bg7 {[%clk 0:02:57.2]} 8. Rc1 {[%clk
0:03:02.8]} 8... O-O {[%clk 0:02:58.1]} 9. Be2 {[%clk 0:03:03.1]} 9... Nc6
{[%clk 0:02:56.7]} 10. Nf3 {[%clk 0:03:03]} 10... Bg4 {[%clk 0:02:55.9]} 11. O-O
{[%clk 0:02:58.3]} 11... Bxf3 {[%clk 0:02:53.5]} 12. gxf3 {[%clk 0:02:57.6]}
12... e5 {[%clk 0:02:52.5]} 13. d5 {[%clk 0:02:47.8]} 13... Nd4 {[%clk
0:02:50.1]} 14. Bxd4 {[%clk 0:02:43]} 14... exd4 {[%clk 0:02:51]} 15. Ne4 {[%clk
0:02:43]} 15... Rc8 {[%clk 0:02:39.3]} 16. b3 {[%clk 0:02:41.3]} 16... f5 {[%clk
0:02:33.2]} 17. Ng3 {[%clk 0:02:39.9]} 17... h5 {[%clk 0:02:26]} 18. Bd3 {[%clk
0:02:34.3]} 18... h4 {[%clk 0:02:23.9]} 19. Ne2 {[%clk 0:02:34.1]} 19... Qg5+
{[%clk 0:02:18.1]} 20. Kh1 {[%clk 0:02:33.5]} 20... Bh6 {[%clk 0:02:15.8]} 21.
Rg1 {[%clk 0:02:26.5]} 21... Qh5 {[%clk 0:02:13.5]} 22. Nxd4 {[%clk 0:02:24]}
22... Bxc1 {[%clk 0:02:05.4]} 23. Qxc1 {[%clk 0:02:24.9]} 23... Nxd5 {[%clk
0:01:54.1]} 24. Qg5 {[%clk 0:02:11.8]} 24... Qxg5 {[%clk 0:01:30]} 25. Rxg5
{[%clk 0:02:12.7]} 25... Ne7 {[%clk 0:01:29.9]} 26. Ne6 {[%clk 0:02:07.9]} 26...
Rf6 {[%clk 0:01:26.4]} 27. Nf4 {[%clk 0:02:03.6]} 27... Kh7 {[%clk 0:01:20.2]}
28. Kg2 {[%clk 0:02:03.8]} 28... Kh6 {[%clk 0:01:10.9]} 29. Nh3 {[%clk 0:02:04]}
29... d5 {[%clk 0:01:01.2]} 30. f4 {[%clk 0:02:04.1]} 30... a6 {[%clk 0:00:53]}
31. Kf3 {[%clk 0:02:03.5]} 31... dxc4 {[%clk 0:00:48.9]} 32. Bxc4 {[%clk
0:02:03.5]} 32... b5 {[%clk 0:00:48.1]} 33. Bf1 {[%clk 0:01:25.7]} 33... Rc3+
{[%clk 0:00:47.8]} 34. Ke2 {[%clk 0:01:23.4]} 34... Re6+ {[%clk 0:00:44.9]} 35.
Kd2 {[%clk 0:01:23.8]} 35... Rf3 {[%clk 0:00:37.9]} 36. Be2 {[%clk 0:01:20.8]}
36... Rxh3 {[%clk 0:00:37]} 0-1

[Event "*** Titled Tuesday Blitz"]
[Site "Chess.com"]
[Date "2021.03.30"]
[Round "10"]
[White "Kretov_Evgenij"]
[Black "mac0504"]
[Result "1-0"]
[WhiteElo "2573"]
[BlackElo "2457"]
[TimeControl "180+1"]
[EndTime "11:56:18 PDT"]
[Termination "Kretov_Evgenij won on time"]

1. d4 {[%clk 0:03:00.9]} 1... Nf6 {[%clk 0:02:52.2]} 2. c4 {[%clk 0:03:00.8]}
2... e6 {[%clk 0:02:51.3]} 3. Nc3 {[%clk 0:03:00.9]} 3... Bb4 {[%clk 0:02:50.2]}
4. Bg5 {[%clk 0:03:01.5]} 4... O-O {[%clk 0:02:45.9]} 5. e3 {[%clk 0:03:01]}
5... h6 {[%clk 0:02:44.9]} 6. Bh4 {[%clk 0:03:00.7]} 6... b6 {[%clk 0:02:45.3]}
7. Bd3 {[%clk 0:03:00]} 7... Bb7 {[%clk 0:02:44]} 8. Nf3 {[%clk 0:02:58.4]} 8...
Bxc3+ {[%clk 0:02:33.9]} 9. bxc3 {[%clk 0:02:57.9]} 9... d6 {[%clk 0:02:32.1]}
10. O-O {[%clk 0:02:56.6]} 10... Nbd7 {[%clk 0:02:05.1]} 11. Nd2 {[%clk
0:02:55.4]} 11... g5 {[%clk 0:01:23.5]} 12. Bg3 {[%clk 0:02:54.4]} 12... e5
{[%clk 0:01:24]} 13. f4 {[%clk 0:02:54.1]} 13... Qe7 {[%clk 0:01:00.3]} 14. fxe5
{[%clk 0:02:46.5]} 14... dxe5 {[%clk 0:00:59.1]} 15. Kh1 {[%clk 0:02:24]} 15...
Rad8 {[%clk 0:00:56.9]} 16. Qe2 {[%clk 0:02:21.1]} 16... Ne8 {[%clk 0:00:44.5]}
17. Rf2 {[%clk 0:02:13.8]} 17... Ng7 {[%clk 0:00:43]} 18. Raf1 {[%clk
0:02:12.9]} 18... f6 {[%clk 0:00:28.7]} 19. Bg6 {[%clk 0:02:01.7]} 19... c5
{[%clk 0:00:20.4]} 20. d5 {[%clk 0:01:55.1]} 20... Nb8 {[%clk 0:00:13.1]} 21.
Ne4 {[%clk 0:01:53.3]} 21... Rd6 {[%clk 0:00:03.5]} 22. Nxd6 {[%clk 0:01:50.8]}
22... Qxd6 {[%clk 0:00:04.4]} 23. h4 {[%clk 0:01:41.6]} 23... Bc8 {[%clk
0:00:03.2]} 24. e4 {[%clk 0:01:36.2]} 24... Na6 {[%clk 0:00:02.7]} 25. hxg5
{[%clk 0:01:32.4]} 25... hxg5 {[%clk 0:00:03.6]} 26. Rb1 {[%clk 0:01:30.5]}
26... Nc7 {[%clk 0:00:01.1]} 27. Kg1 {[%clk 0:01:27.3]} 1-0

[Event "*** Titled Tuesday Blitz"]
[Site "Chess.com"]
[Date "2021.03.30"]
[Round "10"]
[White "Keks2017"]
[Black "XDPS"]
[Result "1/2-1/2"]
[WhiteElo "2492"]
[BlackElo "2749"]
[TimeControl "180+1"]
[EndTime "11:56:33 PDT"]
[Termination "Game drawn by repetition"]

1. g3 {[%clk 0:03:00]} 1... d5 {[%clk 0:02:56]} 2. Bg2 {[%clk 0:03:00]} 2... e5
{[%clk 0:02:56.2]} 3. d3 {[%clk 0:02:59.7]} 3... Nc6 {[%clk 0:02:55.3]} 4. Nf3
{[%clk 0:02:59.7]} 4... g6 {[%clk 0:02:52.7]} 5. O-O {[%clk 0:02:59.3]} 5... Bg7
{[%clk 0:02:53.2]} 6. e4 {[%clk 0:02:59.3]} 6... Nge7 {[%clk 0:02:52.1]} 7. c3
{[%clk 0:02:59.2]} 7... O-O {[%clk 0:02:52.2]} 8. b4 {[%clk 0:02:58.2]} 8... a6
{[%clk 0:02:51.6]} 9. a3 {[%clk 0:02:58.2]} 9... h6 {[%clk 0:02:51.4]} 10. Bb2
{[%clk 0:02:58]} 10... Be6 {[%clk 0:02:51.9]} 11. Nbd2 {[%clk 0:02:57.9]} 11...
Qd7 {[%clk 0:02:52.3]} 12. Qc2 {[%clk 0:02:57.9]} 12... Rad8 {[%clk 0:02:52.1]}
13. Rfe1 {[%clk 0:02:57]} 13... f5 {[%clk 0:02:51.6]} 14. exd5 {[%clk
0:02:56.9]} 14... Bxd5 {[%clk 0:02:42.9]} 15. c4 {[%clk 0:02:50.1]} 15... Bxf3
{[%clk 0:02:43.1]} 16. Nxf3 {[%clk 0:02:49.9]} 16... Qxd3 {[%clk 0:02:41.4]} 17.
Qxd3 {[%clk 0:02:48.8]} 17... Rxd3 {[%clk 0:02:41.9]} 18. Nxe5 {[%clk
0:02:47.4]} 18... Nxe5 {[%clk 0:02:11.2]} 19. Bxe5 {[%clk 0:02:46.8]} 19... Nc6
{[%clk 0:02:11.9]} 20. Bxg7 {[%clk 0:02:33.8]} 20... Kxg7 {[%clk 0:02:12.8]} 21.
b5 {[%clk 0:02:29.4]} 21... axb5 {[%clk 0:02:10.1]} 22. cxb5 {[%clk 0:02:29.1]}
22... Na5 {[%clk 0:02:10.3]} 23. a4 {[%clk 0:02:16.9]} 23... Rf7 {[%clk
0:02:07.7]} 24. h4 {[%clk 0:02:13.8]} 24... Rd4 {[%clk 0:02:05.3]} 25. Ra3
{[%clk 0:02:06.4]} 25... b6 {[%clk 0:01:53.4]} 26. Rc1 {[%clk 0:02:05.3]} 26...
Re7 {[%clk 0:01:48]} 27. Rac3 {[%clk 0:02:04.2]} 27... Rxa4 {[%clk 0:01:32.6]}
28. Rxc7 {[%clk 0:02:03.4]} 28... Rxc7 {[%clk 0:01:33.5]} 29. Rxc7+ {[%clk
0:02:02.9]} 29... Kf6 {[%clk 0:01:33.4]} 30. f4 {[%clk 0:01:44.6]} 30... Rb4
{[%clk 0:01:29.2]} 31. Bd5 {[%clk 0:01:39.8]} 31... g5 {[%clk 0:01:25.4]} 32.
fxg5+ {[%clk 0:01:37.4]} 32... hxg5 {[%clk 0:01:25.8]} 33. h5 {[%clk 0:01:37.3]}
33... Rxb5 {[%clk 0:01:17.4]} 34. Bg8 {[%clk 0:01:35.4]} 34... Rb1+ {[%clk
0:01:13.7]} 35. Kg2 {[%clk 0:01:34.7]} 35... Rb2+ {[%clk 0:01:14.2]} 36. Kg1
{[%clk 0:01:34.2]} 36... Rb1+ {[%clk 0:01:09.5]} 37. Kg2 {[%clk 0:01:33.9]}
37... Rb2+ {[%clk 0:00:20.8]} 38. Kg1 {[%clk 0:01:33.6]} 38... Rb1+ {[%clk
0:00:14.6]} 1/2-1/2

[Event "*** Titled Tuesday Blitz"]
[Site "Chess.com"]
[Date "2021.03.30"]
[Round "10"]
[White "VladDobrov"]
[Black "NateSolon"]
[Result "0-1"]
[WhiteElo "2750"]
[BlackElo "2608"]
[TimeControl "180+1"]
[EndTime "11:56:34 PDT"]
[Termination "NateSolon won on time"]

1. b3 {[%clk 0:02:57]} 1... e5 {[%clk 0:02:58.8]} 2. Bb2 {[%clk 0:02:57.1]} 2...
Nc6 {[%clk 0:02:58.3]} 3. e3 {[%clk 0:02:57.6]} 3... d5 {[%clk 0:02:57.8]} 4.
Bb5 {[%clk 0:02:57.2]} 4... Bd6 {[%clk 0:02:57.3]} 5. f4 {[%clk 0:02:57.1]} 5...
f6 {[%clk 0:02:57.6]} 6. fxe5 {[%clk 0:02:47.8]} 6... fxe5 {[%clk 0:02:56]} 7.
Nf3 {[%clk 0:02:29.7]} 7... Nh6 {[%clk 0:02:46.9]} 8. Bxe5 {[%clk 0:00:57.8]}
8... Bxe5 {[%clk 0:02:39.4]} 9. Nxe5 {[%clk 0:00:57.5]} 9... Qh4+ {[%clk
0:02:39]} 10. g3 {[%clk 0:00:57.6]} 10... Qe4 {[%clk 0:02:32.5]} 11. Qh5+ {[%clk
0:00:57]} 11... g6 {[%clk 0:02:16.8]} 12. Qxh6 {[%clk 0:00:53.5]} 12... Qxh1+
{[%clk 0:02:15.9]} 13. Ke2 {[%clk 0:00:48.6]} 13... Qg2+ {[%clk 0:02:07.6]} 14.
Ke1 {[%clk 0:00:36.3]} 14... Qh1+ {[%clk 0:01:51.7]} 15. Ke2 {[%clk 0:00:35.2]}
15... Rf8 {[%clk 0:01:49.3]} 16. Nc3 {[%clk 0:00:26.4]} 16... Qxa1 {[%clk
0:01:43.3]} 17. Bxc6+ {[%clk 0:00:20.2]} 17... bxc6 {[%clk 0:01:42.8]} 18. Kd3
{[%clk 0:00:20.5]} 18... Qf1+ {[%clk 0:01:35.8]} 19. Kd4 {[%clk 0:00:20.6]}
19... Qf6 {[%clk 0:01:29.4]} 20. Na4 {[%clk 0:00:19.4]} 20... Bf5 {[%clk
0:01:21.1]} 21. d3 {[%clk 0:00:18.6]} 21... O-O-O {[%clk 0:01:19.6]} 22. Nc5
{[%clk 0:00:17]} 22... Rfe8 {[%clk 0:01:16.2]} 23. Qf4 {[%clk 0:00:14]} 23... g5
{[%clk 0:01:15.3]} 24. b4 {[%clk 0:00:05.7]} 24... gxf4 {[%clk 0:01:13.8]} 25.
exf4 {[%clk 0:00:06.2]} 25... Re7 {[%clk 0:01:06.9]} 0-1